[Event "23rd ETCC Women 2021"]
[Site "Catez"]
[Date "2021.11.17"]
[Round "5.28"]
[White "Schneider, Jana"]
[Black "Calzetta Ruiz, Monica"]
[Result "1-0"]
[ECO "B60"]
[WhiteElo "2269"]
[BlackElo "2201"]
[Annotator "ChessBase"]
[PlyCount "89"]
[EventDate "2021.11.08"]
[EventType "team-tourn"]
[EventCountry "SLO"]
[SourceTitle "playchess.com"]
[Source "ChessBase"]
[SourceQuality "1"]
[WhiteTeam "Germany"]
[BlackTeam "Spain"]
[WhiteTeamCountry "GER"]
[BlackTeamCountry "ESP"]
[TimeControl "40/5400+30:1800+30"]

1. e4 {[%emt 0:00:03]} c5 {[%emt 0:00:08]} 2. Nf3 {[%emt 0:00:08]} d6 {[%emt 0:
00:09]} 3. d4 {[%emt 0:00:07]} cxd4 {[%emt 0:00:06]} 4. Nxd4 {[%emt 0:00:05]}
Nf6 {[%emt 0:00:07]} 5. Nc3 {[%emt 0:00:06]} Nc6 {[%emt 0:00:08]} 6. Bg5 {
[%emt 0:01:22]} g6 {[%emt 0:00:09]} 7. Bxf6 {[%emt 0:04:58]} exf6 {[%emt 0:00:
16]} 8. Bc4 {[%emt 0:04:33]} Bg7 {[%emt 0:01:12]} 9. Ndb5 {[%emt 0:05:37]} O-O
{[%emt 0:00:25]} 10. Qxd6 {[%emt 0:10:43]} f5 {[%emt 0:16:01]} 11. O-O-O {
[%emt 0:11:39]} Qg5+ {[%emt 0:06:35]} 12. f4 {[%emt 0:04:36]} Qh6 {[%emt 0:14:
49]} 13. Kb1 {[%emt 0:10:49]} fxe4 {[%emt 0:05:17]} 14. Nxe4 {[%emt 0:02:17]}
Bg4 {[%emt 0:17:30]} 15. Rd2 {[%emt 0:07:06]} Rad8 {[%emt 0:01:26]} 16. Qc7 {
[%emt 0:00:09]} Rc8 {[%emt 0:00:30]} 17. Qxb7 {[%emt 0:07:12]} Na5 {[%emt 0:05:
55]} 18. Bxf7+ {[%emt 0:00:21]} Rxf7 {[%emt 0:00:04]} 19. Qd5 {[%emt 0:00:19]}
Nc4 {[%emt 0:03:09]} 20. Nbd6 {[%emt 0:02:28]} Nxd2+ {[%emt 0:00:33]} 21. Nxd2
{[%emt 0:00:05]} Rcf8 {[%emt 0:08:09]} 22. Nxf7 {[%emt 0:04:27]} Rxf7 {[%emt 0:
00:03]} 23. Ne4 {[%emt 0:02:16]} Qxf4 {[%emt 0:04:42]} 24. Ng5 {[%emt 0:00:59]}
h6 {[%emt 0:03:52]} 25. Nxf7 {[%emt 0:00:38]} Qxf7 {[%emt 0:00:03]} 26. Qxf7+ {
[%emt 0:01:01]} Kxf7 {[%emt 0:00:02]} 27. Rf1+ {[%emt 0:01:56]} Ke6 {[%emt 0:
01:17]} 28. Rf4 {[%emt 0:00:19]} h5 {[%emt 0:02:02]} 29. Ra4 {[%emt 0:01:31]}
Be5 {[%emt 0:00:04]} 30. Ra6+ {[%emt 0:05:27]} Kf5 {[%emt 0:00:46]} 31. h3 {
[%emt 0:01:15]} Be2 {[%emt 0:01:17]} 32. Rxa7 {[%emt 0:00:08]} h4 {[%emt 0:04:
45]} 33. Rd7 {[%emt 0:04:22]} Bf4 {[%emt 0:02:51]} 34. a4 {[%emt 0:02:25]} Bf1
{[%emt 0:00:06]} 35. a5 {[%emt 0:00:14]} Bxg2 {[%emt 0:01:51]} 36. a6 {[%emt 0:
00:09]} Bxh3 {[%emt 0:01:38]} 37. Rd5+ {[%emt 0:00:49]} Ke6 {[%emt 0:00:08]}
38. a7 {[%emt 0:00:17]} Bg2 {[%emt 0:00:23]} 39. a8=Q {[%emt 0:00:10]} Bxd5 {
[%emt 0:00:06]} 40. Qg8+ {[%emt 0:00:27]} Ke5 {[%emt 0:00:43]} 41. Qxg6 {
[%emt 0:34:34]} Bg3 {[%emt 0:31:03]} 42. b4 {[%emt 0:00:00]} Be4 {[%emt 0:00:
00]} 43. Qg5+ {[%emt 0:00:00]} Bf5 {[%emt 0:00:00]} 44. b5 {[%emt 0:00:00]} Bf2
{[%emt 0:00:00]} 45. Qd2 {[%emt 0:00:00]} 1-0

[Event "23rd ETCC Women 2021"]
[Site "Catez"]
[Date "2021.11.16"]
[Round "5.29"]
[White "Bulmaga, Irina"]
[Black "Peng, Zhaoqin"]
[Result "1-0"]
[ECO "C18"]
[WhiteElo "2405"]
[BlackElo "2351"]
[Annotator "NA"]
[PlyCount "61"]
[EventDate "2021.11.08"]
[EventType "team-tourn"]
[EventCountry "SLO"]
[SourceTitle "playchess.com"]
[Source "ChessBase"]
[SourceQuality "1"]
[WhiteTeam "Romania"]
[BlackTeam "Netherlands"]
[WhiteTeamCountry "ROU"]
[BlackTeamCountry "NED"]
[TimeControl "40/5400+30:1800+30"]

1. e4 {[%emt 0:00:04]} e6 {[%emt 0:00:03]} 2. d4 {[%emt 0:00:07]} d5 {[%emt 0:
00:04]} 3. Nc3 {[%emt 0:00:08]} Bb4 {[%emt 0:00:28]} 4. e5 {[%emt 0:00:09]} c5
{[%emt 0:00:13]} 5. a3 {[%emt 0:00:15]} Bxc3+ {[%emt 0:00:19]} 6. bxc3 {
[%emt 0:00:08]} Qa5 {[%emt 0:00:19]} 7. Bd2 {[%emt 0:00:15]} Qa4 {[%emt 0:00:
11]} 8. Qg4 {[%emt 0:00:17]} Kf8 {[%emt 0:00:34]} 9. h4 {[%emt 0:00:32]} Nc6 {
[%emt 0:01:10]} 10. h5 {[%emt 0:14:29]} Qxc2 {[%emt 0:10:28]} 11. Rc1 {[%emt 0:
05:25]} Qe4+ {[%emt 0:14:31]} 12. Qxe4 {[%emt 0:01:54]} dxe4 {[%emt 0:00:01]}
13. Rh4 {[%emt 0:10:52]} Bd7 {[%emt 0:14:01]} 14. Rb1 {[%emt 0:06:31]} Nd8 {
[%emt 0:18:03]} 15. dxc5 {[%emt 0:07:03]} f5 {[%emt 0:13:04]} 16. exf6 {
[%emt 0:05:53]} gxf6 {[%emt 0:00:36]} 17. Rxe4 {[%emt 0:03:14]} Bc6 {[%emt 0:
00:33]} 18. Rg4 {[%emt 0:03:07]} f5 {[%emt 0:10:16]} 19. Rg3 {[%emt 0:04:22]}
Nf7 {[%emt 0:00:49]} 20. Nf3 {[%emt 0:05:01]} Be4 {[%emt 0:02:56]} 21. Rb4 {
[%emt 0:03:33]} Nf6 {[%emt 0:00:11]} 22. Nd4 {[%emt 0:03:48]} Nxh5 {[%emt 0:02:
54]} 23. Nxe6+ {[%emt 0:06:55]} Ke7 {[%emt 0:00:03]} 24. Rh3 {[%emt 0:00:51]}
Kxe6 {[%emt 0:00:36]} 25. Rxh5 {[%emt 0:00:26]} Rae8 {[%emt 0:02:09]} 26. f3 {
[%emt 0:01:25]} Bc6 {[%emt 0:00:54]} 27. Bd3 {[%emt 0:01:44]} Kf6+ {[%emt 0:06:
47]} 28. Kf2 {[%emt 0:01:20]} Re5 {[%emt 0:00:24]} 29. Be3 {[%emt 0:01:39]} Kg6
{[%emt 0:01:15]} 30. g4 {[%emt 0:01:22]} a5 {[%emt 0:00:54]} 31. Rf4 {[%emt 0:
00:46]} 1-0

[Event "23rd ETCC Women 2021"]
[Site "Catez"]
[Date "2021.11.16"]
[Round "5.30"]
[White "Roebers, Eline"]
[Black "Peptan, Corina-Isabela"]
[Result "1-0"]
[ECO "B11"]
[WhiteElo "2304"]
[BlackElo "2385"]
[Annotator "NA"]
[PlyCount "41"]
[EventDate "2021.11.08"]
[EventType "team-tourn"]
[EventCountry "SLO"]
[SourceTitle "playchess.com"]
[Source "ChessBase"]
[SourceQuality "1"]
[WhiteTeam "Netherlands"]
[BlackTeam "Romania"]
[WhiteTeamCountry "NED"]
[BlackTeamCountry "ROU"]
[TimeControl "40/5400+30:1800+30"]

1. e4 {[%emt 0:00:03]} c6 {[%emt 0:00:19]} 2. Nf3 {[%emt 0:00:23]} d5 {[%emt 0:
00:06]} 3. Nc3 {[%emt 0:00:19]} dxe4 {[%emt 0:00:08]} 4. Nxe4 {[%emt 0:00:07]}
Nf6 {[%emt 0:00:07]} 5. Qe2 {[%emt 0:00:13]} Bg4 {[%emt 0:00:08]} 6. Nxf6+ {
[%emt 0:10:06]} gxf6 {[%emt 0:00:06]} 7. g3 {[%emt 0:00:32]} e6 {[%emt 0:02:10]
} 8. Bg2 {[%emt 0:00:59]} Nd7 {[%emt 0:00:10]} 9. d4 {[%emt 0:02:59]} Bd6 {
[%emt 0:06:12]} 10. O-O {[%emt 0:06:01]} h5 {[%emt 0:09:58]} 11. h3 {[%emt 0:
07:37]} Bxf3 {[%emt 0:00:12]} 12. Qxf3 {[%emt 0:00:37]} h4 {[%emt 0:00:20]} 13.
g4 {[%emt 0:00:49]} Qa5 {[%emt 0:29:17]} 14. c4 {[%emt 0:04:25]} O-O-O {
[%emt 0:01:54]} 15. a3 {[%emt 0:11:44]} Qa6 {[%emt 0:00:41]} 16. c5 {[%emt 0:
08:27]} Be7 {[%emt 0:03:25]} 17. b4 {[%emt 0:04:31]} e5 {[%emt 0:13:31]} 18.
Re1 {[%emt 0:07:13]} Rhe8 {[%emt 0:06:18]} 19. a4 {[%emt 0:09:08]} exd4 {
[%emt 0:00:08]} 20. Bf1 {[%emt 0:00:26]} b5 {[%emt 0:00:35]} 21. axb5 {[%emt 0:
00:13]} 1-0

[Event "23rd ETCC Women 2021"]
[Site "Catez"]
[Date "2021.11.16"]
[Round "5.31"]
[White "Cosma, Elena-Luminita"]
[Black "Ratsma, Rosa"]
[Result "1/2-1/2"]
[ECO "D33"]
[WhiteElo "2281"]
[BlackElo "2272"]
[Annotator "NA"]
[PlyCount "73"]
[EventDate "2021.11.08"]
[EventType "team-tourn"]
[EventCountry "SLO"]
[SourceTitle "playchess.com"]
[Source "ChessBase"]
[SourceQuality "1"]
[WhiteTeam "Romania"]
[BlackTeam "Netherlands"]
[WhiteTeamCountry "ROU"]
[BlackTeamCountry "NED"]
[TimeControl "40/5400+30:1800+30"]

1. Nf3 {[%emt 0:00:03]} Nf6 {[%emt 0:00:19]} 2. g3 {[%emt 0:00:09]} d5 {
[%emt 0:00:51]} 3. Bg2 {[%emt 0:00:05]} e6 {[%emt 0:00:49]} 4. O-O {[%emt 0:00:
11]} c5 {[%emt 0:04:09]} 5. d4 {[%emt 0:07:19]} cxd4 {[%emt 0:05:14]} 6. Nxd4 {
[%emt 0:00:30]} Nc6 {[%emt 0:00:29]} 7. c4 {[%emt 0:00:38]} Qb6 {[%emt 0:01:48]
} 8. Nxc6 {[%emt 0:12:53]} bxc6 {[%emt 0:00:26]} 9. Nc3 {[%emt 0:00:17]} Be7 {
[%emt 0:07:02]} 10. cxd5 {[%emt 0:04:29]} exd5 {[%emt 0:17:07]} 11. e4 {
[%emt 0:11:50]} dxe4 {[%emt 0:04:23]} 12. Nxe4 {[%emt 0:02:41]} O-O {[%emt 0:
05:28]} 13. Be3 {[%emt 0:02:55]} Qb5 {[%emt 0:09:39]} 14. a4 {[%emt 0:01:16]}
Qxb2 {[%emt 0:09:03]} 15. Bd4 {[%emt 0:00:50]} Qb7 {[%emt 0:02:50]} 16. Nxf6+ {
[%emt 0:01:45]} Bxf6 {[%emt 0:00:36]} 17. Bxf6 {[%emt 0:02:14]} gxf6 {[%emt 0:
00:05]} 18. Rc1 {[%emt 0:17:58]} Qd7 {[%emt 0:03:40]} 19. Qf3 {[%emt 0:02:18]}
Qf5 {[%emt 0:03:34]} 20. Qxf5 {[%emt 0:06:27]} Bxf5 {[%emt 0:00:06]} 21. Rxc6 {
[%emt 0:00:04]} Be6 {[%emt 0:05:59]} 22. Rc7 {[%emt 0:00:41]} Rfc8 {[%emt 0:00:
38]} 23. Re7 {[%emt 0:10:02]} Kf8 {[%emt 0:01:07]} 24. Rxe6 {[%emt 0:00:08]}
fxe6 {[%emt 0:00:06]} 25. Bxa8 {[%emt 0:00:02]} Rxa8 {[%emt 0:00:07]} 26. Rb1 {
[%emt 0:00:15]} Re8 {[%emt 0:03:18]} 27. f4 {[%emt 0:02:24]} Re7 {[%emt 0:02:
02]} 28. Rb8+ {[%emt 0:02:12]} Kf7 {[%emt 0:00:59]} 29. Kf2 {[%emt 0:00:42]}
Rc7 {[%emt 0:01:54]} 30. Ke3 {[%emt 0:05:04]} Kg6 {[%emt 0:04:30]} 31. Rg8+ {
[%emt 0:01:26]} Kf7 {[%emt 0:01:17]} 32. Ra8 {[%emt 0:00:23]} Kg6 {[%emt 0:00:
24]} 33. Rg8+ {[%emt 0:01:53]} Kf7 {[%emt 0:00:28]} 34. Ra8 {[%emt 0:01:53]}
Kg6 {[%emt 0:00:06]} 35. Rg8+ {[%emt 0:02:06]} Kf7 {[%emt 0:00:14]} 36. Ra8 {
[%emt 0:00:14]} Kg6 {[%emt 0:00:35]} 37. Rg8+ {[%emt 0:00:31]} 1/2-1/2

[Event "23rd ETCC Women 2021"]
[Site "Catez"]
[Date "2021.11.16"]
[Round "5.32"]
[White "Van Foreest, Machteld"]
[Black "Sandu, Mihaela"]
[Result "1/2-1/2"]
[ECO "C41"]
[WhiteElo "2141"]
[BlackElo "2244"]
[Annotator "NA"]
[PlyCount "135"]
[EventDate "2021.11.08"]
[EventType "team-tourn"]
[EventCountry "SLO"]
[SourceTitle "playchess.com"]
[Source "ChessBase"]
[SourceQuality "1"]
[WhiteTeam "Netherlands"]
[BlackTeam "Romania"]
[WhiteTeamCountry "NED"]
[BlackTeamCountry "ROU"]
[TimeControl "40/5400+30:1800+30"]

1. e4 {[%emt 0:00:07]} d6 {[%emt 0:00:15]} 2. d4 {[%emt 0:01:51]} Nf6 {[%emt 0:
00:08]} 3. Nc3 {[%emt 0:00:34]} e5 {[%emt 0:00:12]} 4. Nf3 {[%emt 0:04:01]}
Nbd7 {[%emt 0:02:37]} 5. h3 {[%emt 0:02:17]} Be7 {[%emt 0:01:12]} 6. Be3 {
[%emt 0:02:06]} c6 {[%emt 0:03:01]} 7. g3 {[%emt 0:12:47]} O-O {[%emt 0:00:39]}
8. Bg2 {[%emt 0:00:29]} b5 {[%emt 0:09:35]} 9. Nh4 {[%emt 0:03:32]} b4 {
[%emt 0:01:47]} 10. Ne2 {[%emt 0:01:13]} d5 {[%emt 0:10:55]} 11. exd5 {[%emt 0:
10:28]} Nxd5 {[%emt 0:00:23]} 12. Nf5 {[%emt 0:00:54]} N7b6 {[%emt 0:07:55]}
13. Nxe7+ {[%emt 0:02:32]} Qxe7 {[%emt 0:03:22]} 14. O-O {[%emt 0:09:29]} Nxe3
{[%emt 0:01:47]} 15. fxe3 {[%emt 0:00:07]} exd4 {[%emt 0:13:08]} 16. Nxd4 {
[%emt 0:12:15]} Qxe3+ {[%emt 0:02:15]} 17. Kh2 {[%emt 0:00:25]} Bd7 {[%emt 0:
01:01]} 18. Nxc6 {[%emt 0:11:00]} Bxc6 {[%emt 0:00:58]} 19. Bxc6 {[%emt 0:00:
02]} Rad8 {[%emt 0:00:17]} 20. Qh5 {[%emt 0:01:09]} g6 {[%emt 0:07:21]} 21. Qf3
{[%emt 0:05:36]} Rd2+ {[%emt 0:03:08]} 22. Kh1 {[%emt 0:00:07]} Qxf3+ {[%emt 0:
00:16]} 23. Bxf3 {[%emt 0:00:13]} Rxc2 {[%emt 0:00:08]} 24. Bd1 {[%emt 0:02:31]
} Rxb2 {[%emt 0:15:04]} 25. Bb3 {[%emt 0:00:04]} a5 {[%emt 0:00:27]} 26. Rf4 {
[%emt 0:00:05]} Nd7 {[%emt 0:05:06]} 27. Raf1 {[%emt 0:02:25]} Ne5 {[%emt 0:04:
24]} 28. Re4 {[%emt 0:01:17]} Nd3 {[%emt 0:01:22]} 29. Re7 {[%emt 0:00:34]}
Nf2+ {[%emt 0:00:26]} 30. Kg2 {[%emt 0:03:22]} Ne4+ {[%emt 0:00:17]} 31. Kg1 {
[%emt 0:00:03]} Nxg3 {[%emt 0:01:02]} 32. Bxf7+ {[%emt 0:03:26]} Kh8 {[%emt 0:
00:27]} 33. Rd1 {[%emt 0:00:36]} Nf5 {[%emt 0:03:16]} 34. Ra7 {[%emt 0:01:21]}
a4 {[%emt 0:01:12]} 35. Rdd7 {[%emt 0:00:31]} Kg7 {[%emt 0:01:00]} 36. Be6+ {
[%emt 0:01:54]} Kf6 {[%emt 0:00:07]} 37. Bxf5 {[%emt 0:00:14]} Kxf5 {[%emt 0:
00:05]} 38. Rxa4 {[%emt 0:02:28]} Rc8 {[%emt 0:00:35]} 39. Rf7+ {[%emt 0:00:33]
} Ke6 {[%emt 0:00:49]} 40. Rf2 {[%emt 0:01:58]} Rxf2 {[%emt 0:01:32]} 41. Kxf2
{[%emt 0:30:03]} Rc2+ {[%emt 0:30:22]} 42. Kf3 {[%emt 0:00:00]} Rc4 {[%emt 0:
00:00]} 43. Ra7 {[%emt 0:00:00]} h5 {[%emt 0:00:00]} 44. Ra6+ {[%emt 0:00:00]}
Kf5 {[%emt 0:00:00]} 45. Ra5+ {[%emt 0:00:00]} Kf6 {[%emt 0:00:00]} 46. Rb5 {
[%emt 0:00:00]} Kg7 {[%emt 0:00:00]} 47. Kg3 {[%emt 0:00:00]} Kh6 {[%emt 0:00:
00]} 48. Kf3 {[%emt 0:00:00]} h4 {[%emt 0:00:00]} 49. Rb8 {[%emt 0:00:00]} g5 {
[%emt 0:00:00]} 50. Rb6+ {[%emt 0:00:00]} Kh5 {[%emt 0:00:00]} 51. Kg2 {
[%emt 0:00:00]} Rc2+ {[%emt 0:00:00]} 52. Kg1 {[%emt 0:00:00]} Rc4 {[%emt 0:00:
00]} 53. Kh2 {[%emt 0:00:00]} Rd4 {[%emt 0:00:00]} 54. Kh1 {[%emt 0:00:00]} g4
{[%emt 0:00:00]} 55. Rb5+ {[%emt 0:00:00]} Kg6 {[%emt 0:00:00]} 56. hxg4 {
[%emt 0:00:00]} Rxg4 {[%emt 0:00:00]} 57. Ra5 {[%emt 0:00:57]} Rc4 {[%emt 0:00:
00]} 58. a3 {[%emt 0:00:52]} Rc1+ {[%emt 0:00:00]} 59. Kh2 {[%emt 0:00:03]}
Rc2+ {[%emt 0:00:00]} 60. Kh3 {[%emt 0:00:57]} Rc3+ {[%emt 0:00:00]} 61. Kxh4 {
[%emt 0:00:39]} Rxa3 {[%emt 0:00:00]} 62. Rb5 {[%emt 0:00:26]} Rb3 {[%emt 0:01:
41]} 63. Kg4 {[%emt 0:00:50]} Kf6 {[%emt 0:00:06]} 64. Kf4 {[%emt 0:00:19]} Ke6
{[%emt 0:00:40]} 65. Ke4 {[%emt 0:00:21]} Rh3 {[%emt 0:00:05]} 66. Rb6+ {
[%emt 0:00:11]} Kd7 {[%emt 0:00:03]} 67. Kd4 {[%emt 0:00:10]} Kc7 {[%emt 0:00:
25]} 68. Ke4 {[%emt 0:00:10]} 1/2-1/2

[Event "23rd ETCC Women 2021"]
[Site "Catez"]
[Date "2021.11.16"]
[Round "5.33"]
[White "Zaksaite, Salomeja"]
[Black "Georgescu, Lena"]
[Result "1/2-1/2"]
[ECO "B87"]
[WhiteElo "2250"]
[BlackElo "2262"]
[Annotator "NA"]
[PlyCount "96"]
[EventDate "2021.11.08"]
[EventType "team-tourn"]
[EventCountry "SLO"]
[SourceTitle "playchess.com"]
[Source "ChessBase"]
[SourceQuality "1"]
[WhiteTeam "Lithuania"]
[BlackTeam "Switzerland"]
[WhiteTeamCountry "LTU"]
[BlackTeamCountry "SUI"]
[TimeControl "40/5400+30:1800+30"]

1. e4 {[%emt 0:00:10]} c5 {[%emt 0:00:04]} 2. Nf3 {[%emt 0:00:34]} d6 {[%emt 0:
00:04]} 3. d4 {[%emt 0:00:14]} cxd4 {[%emt 0:00:03]} 4. Nxd4 {[%emt 0:00:03]}
Nf6 {[%emt 0:00:05]} 5. Nc3 {[%emt 0:00:03]} a6 {[%emt 0:00:05]} 6. Bc4 {
[%emt 0:00:07]} e6 {[%emt 0:00:04]} 7. O-O {[%emt 0:02:33]} b5 {[%emt 0:00:16]}
8. Bb3 {[%emt 0:00:05]} Be7 {[%emt 0:00:09]} 9. Qf3 {[%emt 0:00:07]} Qb6 {
[%emt 0:00:08]} 10. Be3 {[%emt 0:00:04]} Qb7 {[%emt 0:00:06]} 11. Qg3 {[%emt 0:
00:02]} b4 {[%emt 0:00:20]} 12. Na4 {[%emt 0:00:07]} Nbd7 {[%emt 0:00:05]} 13.
f3 {[%emt 0:00:18]} O-O {[%emt 0:00:18]} 14. Rfd1 {[%emt 0:10:21]} Ne5 {
[%emt 0:00:48]} 15. Nb6 {[%emt 0:10:33]} Nh5 {[%emt 0:02:32]} 16. Qh3 {[%emt 0:
22:09]} Qxb6 {[%emt 0:17:53]} 17. Qxh5 {[%emt 0:04:32]} Qb7 {[%emt 0:01:18]}
18. Bg5 {[%emt 0:12:45]} Bxg5 {[%emt 0:10:19]} 19. Qxg5 {[%emt 0:00:04]} Qb6 {
[%emt 0:00:42]} 20. a3 {[%emt 0:06:18]} bxa3 {[%emt 0:02:45]} 21. Rxa3 {
[%emt 0:00:09]} h6 {[%emt 0:02:04]} 22. Qe3 {[%emt 0:00:39]} Rd8 {[%emt 0:04:
29]} 23. Nf5 {[%emt 0:08:34]} Rb8 {[%emt 0:09:28]} 24. Qxb6 {[%emt 0:05:16]}
Rxb6 {[%emt 0:00:02]} 25. Ne7+ {[%emt 0:01:21]} Kf8 {[%emt 0:01:35]} 26. Nxc8 {
[%emt 0:00:03]} Rxc8 {[%emt 0:00:10]} 27. Rda1 {[%emt 0:05:50]} Rcc6 {[%emt 0:
04:20]} 28. Ba4 {[%emt 0:00:28]} Rc7 {[%emt 0:02:08]} 29. Bb3 {[%emt 0:00:12]}
Rcc6 {[%emt 0:01:00]} 30. Ba4 {[%emt 0:00:17]} Rc7 {[%emt 0:04:34]} 31. Bb3 {
[%emt 0:01:16]} Ra7 {[%emt 0:00:20]} 32. Kf2 {[%emt 0:03:09]} Nd7 {[%emt 0:02:
26]} 33. R1a2 {[%emt 0:00:52]} Ke7 {[%emt 0:01:44]} 34. Bc4 {[%emt 0:00:26]} a5
{[%emt 0:09:59]} 35. b3 {[%emt 0:03:44]} Ne5 {[%emt 0:00:35]} 36. Be2 {[%emt 0:
02:05]} Nc6 {[%emt 0:00:42]} 37. c3 {[%emt 0:01:28]} Rab7 {[%emt 0:05:34]} 38.
Bd1 {[%emt 0:00:07]} g5 {[%emt 0:00:26]} 39. Ke3 {[%emt 0:00:23]} Rc7 {[%emt 0:
01:43]} 40. g3 {[%emt 0:01:13]} Rb8 {[%emt 0:03:14]} 41. Ra4 {[%emt 0:05:25]}
Kd7 {[%emt 0:21:27]} 42. Rd2 {[%emt 0:02:47]} Ke7 {[%emt 0:01:58]} 43. Rc4 {
[%emt 0:00:26]} Rb6 {[%emt 0:01:11]} 44. Ra2 {[%emt 0:00:14]} Rcb7 {[%emt 0:01:
21]} 45. h4 {[%emt 0:02:14]} gxh4 {[%emt 0:03:39]} 46. gxh4 {[%emt 0:00:04]}
Rb8 {[%emt 0:02:18]} 47. Rg2 {[%emt 0:00:09]} Kf6 {[%emt 0:00:55]} 48. f4 {
[%emt 0:01:07]} Rc8 {[%emt 0:05:51]} 1/2-1/2

[Event "23rd ETCC Women 2021"]
[Site "Catez"]
[Date "2021.11.16"]
[Round "5.34"]
[White "Hakimifard, Ghazal"]
[Black "Baginskaite, Kamile"]
[Result "0-1"]
[ECO "B91"]
[WhiteElo "2267"]
[BlackElo "2100"]
[Annotator "NA"]
[PlyCount "98"]
[EventDate "2021.11.08"]
[EventType "team-tourn"]
[EventCountry "SLO"]
[SourceTitle "playchess.com"]
[Source "ChessBase"]
[SourceQuality "1"]
[WhiteTeam "Switzerland"]
[BlackTeam "Lithuania"]
[WhiteTeamCountry "SUI"]
[BlackTeamCountry "LTU"]
[TimeControl "40/5400+30:1800+30"]

1. e4 {[%emt 0:00:03]} c5 {[%emt 0:00:07]} 2. Nf3 {[%emt 0:00:03]} d6 {[%emt 0:
00:05]} 3. d4 {[%emt 0:00:04]} cxd4 {[%emt 0:00:05]} 4. Nxd4 {[%emt 0:00:05]}
Nf6 {[%emt 0:00:06]} 5. Nc3 {[%emt 0:00:06]} a6 {[%emt 0:00:04]} 6. g3 {
[%emt 0:00:06]} e5 {[%emt 0:00:49]} 7. Nb3 {[%emt 0:00:05]} Nbd7 {[%emt 0:06:
56]} 8. Bg2 {[%emt 0:00:58]} b5 {[%emt 0:01:32]} 9. O-O {[%emt 0:05:07]} Bb7 {
[%emt 0:00:09]} 10. a4 {[%emt 0:03:44]} b4 {[%emt 0:20:09]} 11. Nd5 {[%emt 0:
01:05]} Nxd5 {[%emt 0:00:39]} 12. exd5 {[%emt 0:00:01]} a5 {[%emt 0:00:18]} 13.
Re1 {[%emt 0:06:59]} Be7 {[%emt 0:11:18]} 14. Bd2 {[%emt 0:19:08]} O-O {
[%emt 0:05:10]} 15. c3 {[%emt 0:00:44]} bxc3 {[%emt 0:01:06]} 16. Bxc3 {
[%emt 0:00:01]} Bg5 {[%emt 0:00:10]} 17. Ra3 {[%emt 0:14:12]} Qc7 {[%emt 0:06:
44]} 18. Rf1 {[%emt 0:09:16]} Nc5 {[%emt 0:18:47]} 19. f4 {[%emt 0:08:27]} Bh6
{[%emt 0:06:14]} 20. fxe5 {[%emt 0:09:12]} dxe5 {[%emt 0:02:24]} 21. Kh1 {
[%emt 0:00:16]} Rfd8 {[%emt 0:02:09]} 22. Rf5 {[%emt 0:10:15]} f6 {[%emt 0:01:
30]} 23. g4 {[%emt 0:02:20]} Bf4 {[%emt 0:01:44]} 24. Qf3 {[%emt 0:04:03]} Ra6
{[%emt 0:01:48]} 25. Qe2 {[%emt 0:04:00]} Nxb3 {[%emt 0:07:47]} 26. Rxb3 {
[%emt 0:00:00]} Rad6 {[%emt 0:00:02]} 27. Rxb7 {[%emt 0:01:59]} Qxb7 {[%emt 0:
00:38]} 28. Bxa5 {[%emt 0:00:00]} Ra8 {[%emt 0:01:05]} 29. Bc3 {[%emt 0:02:03]}
Rxa4 {[%emt 0:00:24]} 30. b4 Rxb4 {[%emt 0:01:26]} 31. Bxb4 {[%emt 0:00:24]}
Qxb4 {[%emt 0:00:04]} 32. Rh5 {[%emt 0:01:00]} Qb1+ {[%emt 0:01:23]} 33. Qf1 {
[%emt 0:00:18]} Rb6 {[%emt 0:00:59]} 34. Rh3 {[%emt 0:00:51]} Qc2 {[%emt 0:00:
55]} 35. Qf3 {[%emt 0:00:01]} Rb1+ {[%emt 0:00:46]} 36. Bf1 {[%emt 0:00:00]}
Qc1 {[%emt 0:00:40]} 37. Kg2 {[%emt 0:00:34]} e4 {[%emt 0:00:57]} 38. Qf2 {
[%emt 0:01:07]} Rb2 {[%emt 0:00:48]} 39. Be2 {[%emt 0:00:01]} Qd2 {[%emt 0:00:
54]} 40. Kf1 {[%emt 0:01:06]} Rb1+ {[%emt 0:00:19]} 41. Kg2 {[%emt 0:30:01]}
Rb2 {[%emt 0:30:49]} 42. Kf1 {[%emt 0:00:05]} e3 {[%emt 0:00:00]} 43. Qe1 {
[%emt 0:00:00]} Qc2 {[%emt 0:00:00]} 44. Rf3 {[%emt 0:00:00]} Rb1 {[%emt 0:00:
00]} 45. Qxb1 {[%emt 0:00:00]} Qxb1+ {[%emt 0:00:13]} 46. Kg2 Qe4 {[%emt 0:00:
00]} 47. Kg1 {[%emt 0:00:00]} Be5 {[%emt 0:00:00]} 48. Rf1 {[%emt 0:00:00]} Qc2
{[%emt 0:00:00]} 49. Re1 {[%emt 0:00:00]} Bc3 {[%emt 0:00:00]} 0-1